[Event "Live Chess"]
[Site "Chess.com"]
[Date "2023.05.20"]
[Round "-"]
[White "ramses-IIG"]
[Black "boilerboy1"]
[Result "1/2-1/2"]
[WhiteElo "806"]
[BlackElo "1076"]
[TimeControl "300"]
[EndTime "11:36:34 PDT"]
[Termination "Game drawn by stalemate"]

1. e4 {[%clk 0:04:57.4]} 1... e5 {[%clk 0:04:58.1]} 2. Nf3 {[%clk 0:04:56.8]}
2... d6 {[%clk 0:04:56]} 3. Bc4 {[%clk 0:04:54.2]} 3... Be7 {[%clk 0:04:54.1]}
4. O-O {[%clk 0:04:50.9]} 4... Nf6 {[%clk 0:04:52]} 5. d3 {[%clk 0:04:48.5]}
5... O-O {[%clk 0:04:49.1]} 6. Bg5 {[%clk 0:04:43.2]} 6... c6 {[%clk 0:04:47.7]}
7. Nfd2 {[%clk 0:04:38]} 7... Bg4 {[%clk 0:04:42.2]} 8. f3 {[%clk 0:04:27.3]}
8... Bh5 {[%clk 0:04:37.4]} 9. Qe1 {[%clk 0:04:26.1]} 9... Nbd7 {[%clk
0:04:32.5]} 10. Qg3 {[%clk 0:04:24.9]} 10... Qb6+ {[%clk 0:04:18.6]} 11. Kh1
{[%clk 0:04:09.6]} 11... Qxb2 {[%clk 0:04:16.4]} 12. Bh6 {[%clk 0:03:49.4]}
12... Bg6 {[%clk 0:04:12.3]} 13. Na3 {[%clk 0:03:17.7]} 13... Qxa3 {[%clk
0:04:06.6]} 14. Bg5 {[%clk 0:03:14]} 14... Qc3 {[%clk 0:03:59.8]} 15. Nb3 {[%clk
0:03:07.4]} 15... b5 {[%clk 0:03:50.2]} 16. Bxb5 {[%clk 0:02:42.2]} 16... cxb5
{[%clk 0:03:47]} 17. Na5 {[%clk 0:02:40.4]} 17... Qxa5 {[%clk 0:03:44]} 18. Bxf6
{[%clk 0:02:37.4]} 18... Nxf6 {[%clk 0:03:41.5]} 19. Rfb1 {[%clk 0:02:36.9]}
19... a6 {[%clk 0:03:38.5]} 20. c4 {[%clk 0:02:34.1]} 20... bxc4 {[%clk
0:03:36.1]} 21. dxc4 {[%clk 0:02:34]} 21... Rab8 {[%clk 0:03:30.5]} 22. Rxb8
{[%clk 0:02:32.3]} 22... Rxb8 {[%clk 0:03:27.4]} 23. Qf2 {[%clk 0:02:28.6]}
23... Qc3 {[%clk 0:03:23.2]} 24. Qf1 {[%clk 0:02:05.4]} 24... Rb2 {[%clk
0:03:17.4]} 25. Rc1 {[%clk 0:02:00.5]} 25... Qd2 {[%clk 0:03:12.4]} 26. c5
{[%clk 0:01:52.2]} 26... dxc5 {[%clk 0:03:10.3]} 27. Rd1 {[%clk 0:01:45.3]}
27... Qf2 {[%clk 0:03:04.7]} 28. Qxf2 {[%clk 0:01:42.2]} 28... Rxf2 {[%clk
0:03:02.4]} 29. Kg1 {[%clk 0:01:42.1]} 29... Rxa2 {[%clk 0:02:59.8]} 30. Rb1
{[%clk 0:01:41.4]} 30... h6 {[%clk 0:02:52.6]} 31. Rb8+ {[%clk 0:01:39.2]} 31...
Kh7 {[%clk 0:02:50.2]} 32. Rb7 {[%clk 0:01:38.8]} 32... Bd6 {[%clk 0:02:40.6]}
33. Rb6 {[%clk 0:01:36.9]} 33... Rd2 {[%clk 0:02:36.7]} 34. Rxa6 {[%clk
0:01:34.8]} 34... c4 {[%clk 0:02:34.2]} 35. Rc6 {[%clk 0:01:31.2]} 35... Nh5
{[%clk 0:02:12.6]} 36. Rxc4 {[%clk 0:01:28.9]} 36... Nf4 {[%clk 0:02:10]} 37. g3
{[%clk 0:01:19]} 37... Ne2+ {[%clk 0:02:01.3]} 38. Kf1 {[%clk 0:01:18.9]} 38...
Nd4 {[%clk 0:01:57.1]} 39. Ke1 {[%clk 0:01:12.3]} 39... Rxh2 {[%clk 0:01:52.6]}
40. f4 {[%clk 0:01:10.3]} 40... Nf3+ {[%clk 0:01:49.8]} 41. Kd1 {[%clk
0:01:07.7]} 41... exf4 {[%clk 0:01:47.5]} 42. gxf4 {[%clk 0:01:05.7]} 42... Bxf4
{[%clk 0:01:45.6]} 43. Rc3 {[%clk 0:01:02.3]} 43... Rd2+ {[%clk 0:01:39]} 44.
Kc1 {[%clk 0:00:59.1]} 44... Rf2+ {[%clk 0:01:29]} 45. Kb1 {[%clk 0:00:55.2]}
45... Nd2+ {[%clk 0:01:26.4]} 46. Ka1 {[%clk 0:00:50.6]} 46... Nxe4 {[%clk
0:01:25]} 47. Rc4 {[%clk 0:00:47.8]} 47... Be5+ {[%clk 0:01:22.9]} 48. Kb1
{[%clk 0:00:45.2]} 48... Nd2+ {[%clk 0:01:19.5]} 49. Kc1 {[%clk 0:00:44.2]}
49... Nxc4 {[%clk 0:01:18.1]} 50. Kd1 {[%clk 0:00:42.8]} 50... Nb2+ {[%clk
0:01:14.3]} 51. Ke1 {[%clk 0:00:41.1]} 51... Bd4 {[%clk 0:01:12.1]} 1/2-1/2

[Event "Live Chess"]
[Site "Chess.com"]
[Date "2023.05.20"]
[Round "-"]
[White "bristolunichess"]
[Black "CeladonFish"]
[Result "0-1"]
[WhiteElo "1811"]
[BlackElo "1087"]
[TimeControl "300"]
[EndTime "11:36:38 PDT"]
[Termination "CeladonFish won on time"]

1. e4 {[%clk 0:04:49.3]} 1... d6 {[%clk 0:04:51]} 2. d4 {[%clk 0:04:42.8]} 2...
Nf6 {[%clk 0:04:45.9]} 3. Nc3 {[%clk 0:04:37.1]} 3... g6 {[%clk 0:04:44.7]} 4.
h4 {[%clk 0:04:15.1]} 4... Bg7 {[%clk 0:04:43.2]} 5. Be2 {[%clk 0:03:56.4]} 5...
Nc6 {[%clk 0:04:40.4]} 6. h5 {[%clk 0:03:50.3]} 6... Nd7 {[%clk 0:04:27.4]} 7.
Nf3 {[%clk 0:03:24.6]} 7... O-O {[%clk 0:04:00.8]} 8. hxg6 {[%clk 0:03:08.3]}
8... fxg6 {[%clk 0:03:59]} 9. Ng5 {[%clk 0:02:43.3]} 9... Nf6 {[%clk 0:03:52]}
10. f4 {[%clk 0:02:25.8]} 10... d5 {[%clk 0:03:14]} 11. e5 {[%clk 0:02:10.5]}
11... Ne4 {[%clk 0:03:09.9]} 12. Ncxe4 {[%clk 0:01:55]} 12... dxe4 {[%clk
0:03:08]} 13. Bc4+ {[%clk 0:01:53.1]} 13... e6 {[%clk 0:02:33]} 14. Nxe6 {[%clk
0:01:12.2]} 14... Bxe6 {[%clk 0:02:29.1]} 15. Bxe6+ {[%clk 0:01:10]} 15... Kh8
{[%clk 0:02:18.1]} 16. d5 {[%clk 0:00:59.2]} 16... Ne7 {[%clk 0:02:11.4]} 17.
Kf2 {[%clk 0:00:37.1]} 17... Nf5 {[%clk 0:02:01.9]} 18. g4 {[%clk 0:00:30.6]}
18... e3+ {[%clk 0:01:58.6]} 19. Bxe3 {[%clk 0:00:24.8]} 19... Nxe3 {[%clk
0:01:57.1]} 20. Rxh7+ {[%clk 0:00:21.1]} 20... Kxh7 {[%clk 0:01:55.9]} 21. Qh1+
{[%clk 0:00:19.6]} 21... Bh6 {[%clk 0:01:53.8]} 22. g5 {[%clk 0:00:18.7]} 22...
Ng4+ {[%clk 0:01:50.7]} 23. Bxg4 {[%clk 0:00:14.8]} 23... Kg7 {[%clk 0:01:41]}
24. Ke3 {[%clk 0:00:13.3]} 24... Kf7 {[%clk 0:01:38.5]} 25. Qxh6 {[%clk
0:00:12]} 25... Rh8 {[%clk 0:01:35.2]} 26. e6+ {[%clk 0:00:08.3]} 26... Ke7
{[%clk 0:01:33.4]} 27. Qxg6 {[%clk 0:00:06]} 27... Kd6 {[%clk 0:01:29.8]} 28.
Qf7 {[%clk 0:00:02.9]} 28... Kc5 {[%clk 0:01:27.7]} 29. Qf5 {[%clk 0:00:01]}
29... Kb6 {[%clk 0:01:26.5]} 30. Qd3 {[%clk 0:00:00.5]} 30... c5 {[%clk
0:01:24.8]} 31. Qb3+ {[%clk 0:00:00.4]} 31... Kc7 {[%clk 0:01:24.3]} 32. Qc4
{[%clk 0:00:00.3]} 32... Kd6 {[%clk 0:01:23.8]} 0-1

[Event "Live Chess"]
[Site "Chess.com"]
[Date "2023.05.20"]
[Round "-"]
[White "ranvir123"]
[Black "jagbama"]
[Result "0-1"]
[WhiteElo "901"]
[BlackElo "1117"]
[TimeControl "300"]
[EndTime "11:36:43 PDT"]
[Termination "jagbama won by checkmate"]

1. e4 {[%clk 0:04:57.1]} 1... e5 {[%clk 0:04:59.2]} 2. Nf3 {[%clk 0:04:56.4]}
2... Nc6 {[%clk 0:04:58.3]} 3. Bc4 {[%clk 0:04:55.8]} 3... Bc5 {[%clk
0:04:57.6]} 4. c3 {[%clk 0:04:53.7]} 4... Nf6 {[%clk 0:04:54.9]} 5. d4 {[%clk
0:04:52.2]} 5... h6 {[%clk 0:04:54.2]} 6. dxc5 {[%clk 0:04:49.7]} 6... d6 {[%clk
0:04:52.3]} 7. cxd6 {[%clk 0:04:48.3]} 7... cxd6 {[%clk 0:04:52.1]} 8. O-O
{[%clk 0:04:42.4]} 8... Bg4 {[%clk 0:04:49.3]} 9. h3 {[%clk 0:04:40.7]} 9...
Bxh3 {[%clk 0:04:43.4]} 10. gxh3 {[%clk 0:04:39.1]} 10... Nxe4 {[%clk
0:04:43.3]} 11. Nbd2 {[%clk 0:04:32]} 11... Ng5 {[%clk 0:04:40.3]} 12. Nxg5
{[%clk 0:04:29]} 12... Qxg5+ {[%clk 0:04:39.1]} 13. Kh2 {[%clk 0:04:25.5]} 13...
Qf4+ {[%clk 0:04:37.2]} 14. Kh1 {[%clk 0:04:21.3]} 14... g5 {[%clk 0:04:29.6]}
15. Nb3 {[%clk 0:04:17.7]} 15... Qxc4 {[%clk 0:04:25.8]} 16. Qxd6 {[%clk
0:04:16]} 16... Qxf1+ {[%clk 0:04:23.8]} 17. Kh2 {[%clk 0:04:15]} 17... Qxf2+
{[%clk 0:04:21.9]} 18. Kh1 {[%clk 0:04:13.7]} 18... Rd8 {[%clk 0:04:08.2]} 19.
Qxd8+ {[%clk 0:04:01.5]} 19... Nxd8 {[%clk 0:04:04.3]} 20. Nc5 {[%clk 0:04:00]}
20... Ne6 {[%clk 0:04:00.9]} 21. Nxb7 {[%clk 0:03:58.4]} 21... Nf4 {[%clk
0:03:59.5]} 22. Nd6+ {[%clk 0:03:57.2]} 22... Kd7 {[%clk 0:03:57.9]} 23. Nxf7
{[%clk 0:03:56.2]} 23... Qg2# {[%clk 0:03:56.7]} 0-1

[Event "Live Chess"]
[Site "Chess.com"]
[Date "2023.05.20"]
[Round "-"]
[White "KGreenGator"]
[Black "DerbyKnight"]
[Result "1-0"]
[WhiteElo "1767"]
[BlackElo "1635"]
[TimeControl "300"]
[EndTime "11:36:45 PDT"]
[Termination "KGreenGator won on time"]

1. c4 {[%clk 0:04:58.7]} 1... e6 {[%clk 0:04:58.4]} 2. Nc3 {[%clk 0:04:58.2]}
2... d5 {[%clk 0:04:57.6]} 3. e3 {[%clk 0:04:56.4]} 3... Nf6 {[%clk 0:04:53.2]}
4. d4 {[%clk 0:04:55.4]} 4... a6 {[%clk 0:04:49.5]} 5. Nf3 {[%clk 0:04:53.9]}
5... dxc4 {[%clk 0:04:46.2]} 6. Bxc4 {[%clk 0:04:51.6]} 6... b5 {[%clk
0:04:44.1]} 7. Bd3 {[%clk 0:04:49.9]} 7... c5 {[%clk 0:04:42]} 8. Ne4 {[%clk
0:04:46.2]} 8... c4 {[%clk 0:04:36.3]} 9. Bc2 {[%clk 0:04:45.1]} 9... Bb7 {[%clk
0:04:32.3]} 10. Nxf6+ {[%clk 0:04:42.9]} 10... Qxf6 {[%clk 0:04:31.3]} 11. e4
{[%clk 0:04:38.4]} 11... Bb4+ {[%clk 0:04:16.5]} 12. Bd2 {[%clk 0:04:33.7]}
12... Bxd2+ {[%clk 0:04:04.8]} 13. Qxd2 {[%clk 0:04:32.1]} 13... Nc6 {[%clk
0:03:57]} 14. O-O {[%clk 0:04:29.5]} 14... O-O {[%clk 0:03:36]} 15. e5 {[%clk
0:04:27.7]} 15... Qh6 {[%clk 0:03:27.7]} 16. Qxh6 {[%clk 0:04:20.3]} 16... gxh6
{[%clk 0:03:27.6]} 17. Be4 {[%clk 0:04:15.8]} 17... Rab8 {[%clk 0:03:15]} 18.
Rad1 {[%clk 0:04:10.6]} 18... Nb4 {[%clk 0:03:12.3]} 19. Bxb7 {[%clk 0:04:06.5]}
19... Rxb7 {[%clk 0:03:11.8]} 20. a3 {[%clk 0:04:05.9]} 20... Nd3 {[%clk
0:03:06.5]} 21. Rd2 {[%clk 0:04:03.3]} 21... a5 {[%clk 0:03:04.2]} 22. h3 {[%clk
0:04:00.6]} 22... b4 {[%clk 0:03:02.1]} 23. axb4 {[%clk 0:03:58.7]} 23... axb4
{[%clk 0:03:00]} 24. Nh2 {[%clk 0:03:56.9]} 24... Nf4 {[%clk 0:02:51.3]} 25. Ng4
{[%clk 0:03:54.7]} 25... Kg7 {[%clk 0:02:46.5]} 26. Rc1 {[%clk 0:03:49.4]} 26...
Rc8 {[%clk 0:02:40.7]} 27. Ne3 {[%clk 0:03:43.4]} 27... c3 {[%clk 0:02:36.8]}
28. bxc3 {[%clk 0:03:41.6]} 28... bxc3 {[%clk 0:02:35]} 29. Rdc2 {[%clk
0:03:38.9]} 29... Rbc7 {[%clk 0:02:31.7]} 30. Kf1 {[%clk 0:03:36.2]} 30... Nd3
{[%clk 0:02:29]} 31. Rd1 {[%clk 0:03:33.9]} 31... Nb4 {[%clk 0:02:20.5]} 32. Re2
{[%clk 0:03:29.2]} 32... c2 {[%clk 0:02:14.1]} 33. Rc1 {[%clk 0:03:27.1]} 33...
Rc3 {[%clk 0:01:39.6]} 34. Rd2 {[%clk 0:03:21.1]} 34... Kf8 {[%clk 0:01:29.6]}
35. Ke2 {[%clk 0:03:16]} 35... Ke7 {[%clk 0:01:27.3]} 36. f4 {[%clk 0:03:14.1]}
36... Kd7 {[%clk 0:01:15.2]} 37. f5 {[%clk 0:03:11.6]} 37... Nd5 {[%clk
0:01:10]} 38. Nxd5 {[%clk 0:03:05.9]} 38... exd5 {[%clk 0:01:07.7]} 39. Rd3
{[%clk 0:03:03.8]} 39... R3c4 {[%clk 0:00:55.6]} 40. Kd2 {[%clk 0:03:02.7]}
40... R8c6 {[%clk 0:00:49.6]} 41. Ke3 {[%clk 0:02:57.4]} 41... Rb6 {[%clk
0:00:45.3]} 42. g4 {[%clk 0:02:52.6]} 42... Rb1 {[%clk 0:00:43]} 43. Kd2 {[%clk
0:02:51.6]} 43... Rb2 {[%clk 0:00:35.6]} 44. h4 {[%clk 0:02:46.8]} 44... Rbb4
{[%clk 0:00:32.7]} 45. Rxc2 {[%clk 0:02:43.2]} 45... Rxd4 {[%clk 0:00:29.1]} 46.
Rxd4 {[%clk 0:02:39.3]} 46... Rxd4+ {[%clk 0:00:26.8]} 47. Ke3 {[%clk
0:02:38.4]} 47... Rxg4 {[%clk 0:00:25.6]} 48. Rd2 {[%clk 0:02:37.6]} 48... Kc6
{[%clk 0:00:23.9]} 49. h5 {[%clk 0:02:34.6]} 49... Rg5 {[%clk 0:00:21.3]} 50.
Kf4 {[%clk 0:02:33.5]} 50... Rxh5 {[%clk 0:00:20]} 51. e6 {[%clk 0:02:32]} 51...
fxe6 {[%clk 0:00:16.7]} 52. fxe6 {[%clk 0:02:31.3]} 52... Kd6 {[%clk 0:00:15.6]}
53. Kg4 {[%clk 0:02:30.3]} 53... Re5 {[%clk 0:00:13.4]} 54. Rh2 {[%clk
0:02:29.1]} 54... Rxe6 {[%clk 0:00:13.3]} 55. Rd2 {[%clk 0:02:27.6]} 55... Re4+
{[%clk 0:00:11.2]} 56. Kh5 {[%clk 0:02:26.2]} 56... Re6 {[%clk 0:00:09.7]} 57.
Ra2 {[%clk 0:02:23.9]} 57... Rg6 {[%clk 0:00:07.5]} 58. Ra6+ {[%clk 0:02:22.1]}
58... Ke5 {[%clk 0:00:05.8]} 59. Ra5 {[%clk 0:02:19.8]} 59... Rg5+ {[%clk
0:00:04.1]} 60. Kxh6 {[%clk 0:02:18.4]} 60... Rg6+ {[%clk 0:00:02.4]} 61. Kxh7
{[%clk 0:02:17.5]} 61... Rd6 {[%clk 0:00:01.5]} 62. Kg7 {[%clk 0:02:16.5]} 62...
Ke4 {[%clk 0:00:01.4]} 63. Kf7 {[%clk 0:02:15.2]} 63... d4 {[%clk 0:00:01]} 64.
Ke7 {[%clk 0:02:14.3]} 64... d3 {[%clk 0:00:00.9]} 65. Kxd6 {[%clk 0:02:12.9]}
1-0

[Event "Live Chess"]
[Site "Chess.com"]
[Date "2023.05.20"]
[Round "-"]
[White "CheckThis4"]
[Black "Enhard"]
[Result "1-0"]
[WhiteElo "2552"]
[BlackElo "1441"]
[TimeControl "300"]
[EndTime "11:36:46 PDT"]
[Termination "CheckThis4 won by resignation"]

1. d4 {[%clk 0:04:58.5]} 1... c6 {[%clk 0:04:58.7]} 2. Bg5 {[%clk 0:04:47.1]}
2... h6 {[%clk 0:04:53.4]} 3. Bh4 {[%clk 0:04:42.7]} 3... d5 {[%clk 0:04:51]} 4.
e3 {[%clk 0:04:40]} 4... Bf5 {[%clk 0:04:49.6]} 5. Nf3 {[%clk 0:04:35.2]} 5...
Nd7 {[%clk 0:04:46.8]} 6. c4 {[%clk 0:04:33.1]} 6... Ngf6 {[%clk 0:04:45.1]} 7.
Nc3 {[%clk 0:04:30.3]} 7... e6 {[%clk 0:04:43.6]} 8. cxd5 {[%clk 0:04:27.1]}
8... exd5 {[%clk 0:04:41.6]} 9. Ne5 {[%clk 0:04:10.7]} 9... Be7 {[%clk
0:04:39.2]} 10. Qf3 {[%clk 0:04:03.8]} 10... Be6 {[%clk 0:04:32.9]} 11. Bg3
{[%clk 0:03:59.2]} 11... O-O {[%clk 0:04:30.5]} 12. Bd3 {[%clk 0:03:55.4]} 12...
Nxe5 {[%clk 0:04:19.8]} 13. Bxe5 {[%clk 0:03:51.4]} 13... Rc8 {[%clk 0:03:59.6]}
14. h3 {[%clk 0:03:48.2]} 14... c5 {[%clk 0:03:55]} 15. O-O {[%clk 0:03:45.7]}
15... cxd4 {[%clk 0:03:30.7]} 16. exd4 {[%clk 0:03:41.4]} 16... a6 {[%clk
0:03:20.8]} 17. Rfe1 {[%clk 0:03:38.7]} 17... Bb4 {[%clk 0:02:45.8]} 18. Re3
{[%clk 0:03:26.2]} 18... Bxc3 {[%clk 0:02:40.3]} 19. bxc3 {[%clk 0:03:25]} 19...
Ne4 {[%clk 0:02:29.3]} 20. Bxe4 {[%clk 0:03:22.3]} 20... dxe4 {[%clk 0:02:28.1]}
21. Qxe4 {[%clk 0:03:21]} 21... Bd5 {[%clk 0:02:08.1]} 22. Qg4 {[%clk
0:03:14.3]} 22... f6 {[%clk 0:01:49.3]} 23. Bf4 {[%clk 0:03:01.7]} 23... Kh7
{[%clk 0:01:28.9]} 24. Rae1 {[%clk 0:02:57.5]} 24... Qd7 {[%clk 0:01:15.4]} 25.
Qxd7 {[%clk 0:02:54.9]} 1-0

[Event "Live Chess"]
[Site "Chess.com"]
[Date "2023.05.20"]
[Round "-"]
[White "LL220284LL"]
[Black "mightysmasher"]
[Result "1-0"]
[WhiteElo "2396"]
[BlackElo "2138"]
[TimeControl "300"]
[EndTime "11:36:53 PDT"]
[Termination "LL220284LL won by resignation"]

1. d4 {[%clk 0:04:57.3]} 1... d5 {[%clk 0:04:58.6]} 2. Nf3 {[%clk 0:04:55.7]}
2... c5 {[%clk 0:04:56.7]} 3. dxc5 {[%clk 0:04:52.6]} 3... e6 {[%clk 0:04:54.6]}
4. a3 {[%clk 0:04:51.9]} 4... Bxc5 {[%clk 0:04:52.5]} 5. b4 {[%clk 0:04:51.5]}
5... Be7 {[%clk 0:04:51.1]} 6. Bb2 {[%clk 0:04:50.8]} 6... Bf6 {[%clk
0:04:49.3]} 7. Qc1 {[%clk 0:04:50]} 7... Nc6 {[%clk 0:04:48.1]} 8. e3 {[%clk
0:04:48.8]} 8... Nh6 {[%clk 0:04:46.6]} 9. Bd3 {[%clk 0:04:47.6]} 9... O-O
{[%clk 0:04:45.4]} 10. O-O {[%clk 0:04:46.4]} 10... e5 {[%clk 0:04:44.7]} 11.
Be2 {[%clk 0:04:43.3]} 11... e4 {[%clk 0:04:41.6]} 12. Nfd2 {[%clk 0:04:41]}
12... Ng4 {[%clk 0:04:38.9]} 13. h3 {[%clk 0:04:37.3]} 13... Nge5 {[%clk
0:04:37.2]} 14. c4 {[%clk 0:04:35.8]} 14... d4 {[%clk 0:04:35.7]} 15. exd4
{[%clk 0:04:32.3]} 15... Nxd4 {[%clk 0:04:34.3]} 16. Bxd4 {[%clk 0:04:30.6]}
16... Qxd4 {[%clk 0:04:33.1]} 17. Nb3 {[%clk 0:04:30.2]} 17... Qd8 {[%clk
0:04:29.7]} 18. Rd1 {[%clk 0:04:28.3]} 18... Qc7 {[%clk 0:04:25.6]} 19. Nc3
{[%clk 0:04:20.8]} 19... Nxc4 {[%clk 0:04:21]} 20. Nd5 {[%clk 0:04:19.7]} 20...
Qe5 {[%clk 0:04:14.8]} 21. Nxf6+ {[%clk 0:04:18.1]} 21... Qxf6 {[%clk
0:04:13.4]} 22. Qxc4 {[%clk 0:04:16.3]} 22... Be6 {[%clk 0:04:12.4]} 23. Qc2
{[%clk 0:04:11.4]} 23... Rac8 {[%clk 0:04:10]} 24. Qb1 {[%clk 0:04:04.7]} 24...
Rfd8 {[%clk 0:03:54.4]} 25. Nc5 {[%clk 0:04:01.6]} 25... Bd5 {[%clk 0:03:49.4]}
26. Nxe4 {[%clk 0:03:30]} 26... Qg6 {[%clk 0:03:41.1]} 27. Bf3 {[%clk
0:03:26.3]} 27... f5 {[%clk 0:03:34.5]} 28. Rxd5 {[%clk 0:03:20.6]} 28... Rxd5
{[%clk 0:03:27.6]} 29. Nf6+ {[%clk 0:03:14.7]} 29... Qxf6 {[%clk 0:03:25.8]} 30.
Bxd5+ {[%clk 0:03:13.9]} 30... Kh8 {[%clk 0:03:25.4]} 31. Qf1 {[%clk 0:03:12.2]}
31... g6 {[%clk 0:03:23]} 32. Bxb7 {[%clk 0:03:10.5]} 32... Rd8 {[%clk 0:03:21]}
33. Rd1 {[%clk 0:03:09.1]} 33... Re8 {[%clk 0:03:19]} 34. Qc4 {[%clk 0:03:05.8]}
34... h6 {[%clk 0:03:07.9]} 35. Qd4 {[%clk 0:03:04.6]} 35... Re1+ {[%clk
0:03:03.6]} 36. Kh2 {[%clk 0:03:01.5]} 36... Re5 {[%clk 0:03:02]} 37. Qd8+
{[%clk 0:02:59.3]} 1-0

[Event "Live Chess"]
[Site "Chess.com"]
[Date "2023.05.20"]
[Round "-"]
[White "mattlirious"]
[Black "f4nomore"]
[Result "0-1"]
[WhiteElo "1317"]
[BlackElo "1367"]
[TimeControl "300"]
[EndTime "11:36:59 PDT"]
[Termination "f4nomore won by resignation"]

1. e4 {[%clk 0:04:53.1]} 1... g6 {[%clk 0:04:59.9]} 2. d4 {[%clk 0:04:49.7]}
2... Bg7 {[%clk 0:04:59.8]} 3. Nf3 {[%clk 0:04:46.1]} 3... d6 {[%clk 0:04:59.7]}
4. Bc4 {[%clk 0:04:42.9]} 4... e6 {[%clk 0:04:57.8]} 5. c3 {[%clk 0:04:41.1]}
5... Bd7 {[%clk 0:04:56]} 6. Nbd2 {[%clk 0:04:37.3]} 6... Ne7 {[%clk 0:04:54.8]}
7. b3 {[%clk 0:04:34.6]} 7... O-O {[%clk 0:04:52.8]} 8. Bb2 {[%clk 0:04:30.6]}
8... c6 {[%clk 0:04:49.5]} 9. Bd3 {[%clk 0:04:27.3]} 9... d5 {[%clk 0:04:47.9]}
10. e5 {[%clk 0:04:21.3]} 10... b6 {[%clk 0:04:40.7]} 11. Qc2 {[%clk 0:04:18.2]}
11... c5 {[%clk 0:04:38.7]} 12. O-O-O {[%clk 0:04:14.9]} 12... Nbc6 {[%clk
0:04:30.2]} 13. h4 {[%clk 0:04:07.9]} 13... cxd4 {[%clk 0:04:24.1]} 14. cxd4
{[%clk 0:04:04.6]} 14... Nxd4 {[%clk 0:04:16.3]} 15. Nxd4 {[%clk 0:03:59.3]}
15... Rc8 {[%clk 0:04:14.9]} 16. Bc3 {[%clk 0:03:57.6]} 16... Bxe5 {[%clk
0:04:09.5]} 17. N2f3 {[%clk 0:03:50.4]} 17... Bxd4 {[%clk 0:04:03.8]} 18. Nxd4
{[%clk 0:03:46.3]} 18... e5 {[%clk 0:04:02.8]} 19. h5 {[%clk 0:03:36.7]} 19...
exd4 {[%clk 0:03:59.4]} 20. hxg6 {[%clk 0:03:23.2]} 20... Rxc3 {[%clk
0:03:55.1]} 21. gxh7+ {[%clk 0:03:00.6]} 21... Kh8 {[%clk 0:03:49.8]} 22. Qxc3
{[%clk 0:02:56.9]} 22... dxc3 {[%clk 0:03:45.2]} 23. Rh6 {[%clk 0:02:17.2]} 0-1

[Event "Live Chess"]
[Site "Chess.com"]
[Date "2023.05.20"]
[Round "-"]
[White "TheSmoulderingMaster"]
[Black "Ayursworld"]
[Result "1-0"]
[WhiteElo "1764"]
[BlackElo "1345"]
[TimeControl "300"]
[EndTime "11:36:59 PDT"]
[Termination "TheSmoulderingMaster won by checkmate"]

1. e4 {[%clk 0:04:59.5]} 1... c5 {[%clk 0:04:57.9]} 2. Nf3 {[%clk 0:04:58.4]}
2... Nc6 {[%clk 0:04:56.4]} 3. d4 {[%clk 0:04:57.8]} 3... cxd4 {[%clk
0:04:54.8]} 4. Nxd4 {[%clk 0:04:57.2]} 4... Nxd4 {[%clk 0:04:53.9]} 5. Qxd4
{[%clk 0:04:55.9]} 5... e6 {[%clk 0:04:52.9]} 6. Nc3 {[%clk 0:04:54.8]} 6... Nf6
{[%clk 0:04:50.3]} 7. Bg5 {[%clk 0:04:53.1]} 7... h6 {[%clk 0:04:47.7]} 8. Bh4
{[%clk 0:04:51.9]} 8... g5 {[%clk 0:04:45.6]} 9. Bg3 {[%clk 0:04:51.1]} 9... d6
{[%clk 0:04:35]} 10. O-O-O {[%clk 0:04:44.9]} 10... e5 {[%clk 0:04:32.6]} 11.
Bxe5 {[%clk 0:04:42.4]} 11... Bg7 {[%clk 0:04:27.7]} 12. Bxd6 {[%clk 0:04:31.2]}
12... Be6 {[%clk 0:04:13.7]} 13. Bb5+ {[%clk 0:04:26.8]} 13... Bd7 {[%clk
0:04:09.1]} 14. e5 {[%clk 0:04:24.2]} 14... Bxb5 {[%clk 0:03:55.4]} 15. Nxb5
{[%clk 0:04:22.8]} 15... Nd7 {[%clk 0:03:49.2]} 16. Nc7+ {[%clk 0:04:20.4]}
16... Qxc7 {[%clk 0:03:41.8]} 17. Bxc7 {[%clk 0:04:19.7]} 17... Nb6 {[%clk
0:03:38.5]} 18. Bxb6 {[%clk 0:04:17.5]} 18... axb6 {[%clk 0:03:37.1]} 19. Qd7+
{[%clk 0:04:15.3]} 19... Kf8 {[%clk 0:03:34.5]} 20. e6 {[%clk 0:04:14.9]} 20...
fxe6 {[%clk 0:03:32.7]} 21. Qxe6 {[%clk 0:04:12.5]} 21... Re8 {[%clk 0:03:25.8]}
22. Qf5+ {[%clk 0:04:10]} 22... Kg8 {[%clk 0:03:23.6]} 23. Rhe1 {[%clk
0:04:08.5]} 23... Rxe1 {[%clk 0:03:20.8]} 24. Rxe1 {[%clk 0:04:06.8]} 24... Bf8
{[%clk 0:03:16.6]} 25. Qg6+ {[%clk 0:04:04.8]} 25... Bg7 {[%clk 0:03:15.3]} 26.
Re8# {[%clk 0:04:03.5]} 1-0

[Event "Live Chess"]
[Site "Chess.com"]
[Date "2023.05.20"]
[Round "-"]
[White "AbilifyXL"]
[Black "MaximKris"]
[Result "0-1"]
[WhiteElo "1948"]
[BlackElo "1893"]
[TimeControl "300"]
[EndTime "11:37:02 PDT"]
[Termination "MaximKris won by resignation"]

1. d4 {[%clk 0:04:57.6]} 1... d5 {[%clk 0:04:58.4]} 2. c4 {[%clk 0:04:57.2]}
2... e6 {[%clk 0:04:57.2]} 3. Nc3 {[%clk 0:04:56.4]} 3... Nf6 {[%clk 0:04:56.4]}
4. cxd5 {[%clk 0:04:55.9]} 4... exd5 {[%clk 0:04:52.9]} 5. Nf3 {[%clk
0:04:55.5]} 5... Bf5 {[%clk 0:04:51.5]} 6. Bg5 {[%clk 0:04:55.2]} 6... Be7
{[%clk 0:04:49.9]} 7. e3 {[%clk 0:04:54.5]} 7... h6 {[%clk 0:04:49.2]} 8. Bh4
{[%clk 0:04:52.9]} 8... Nc6 {[%clk 0:04:48.5]} 9. Bd3 {[%clk 0:04:52.3]} 9...
Qd7 {[%clk 0:04:40.5]} 10. O-O {[%clk 0:04:49.9]} 10... O-O-O {[%clk 0:04:38.4]}
11. Rc1 {[%clk 0:04:48.1]} 11... g5 {[%clk 0:04:37]} 12. Bg3 {[%clk 0:04:45.4]}
12... h5 {[%clk 0:04:33.1]} 13. Ne5 {[%clk 0:04:40.6]} 13... Nxe5 {[%clk
0:04:29.3]} 14. Bxe5 {[%clk 0:04:39.2]} 14... h4 {[%clk 0:04:25.5]} 15. Bxf5
{[%clk 0:04:33.8]} 15... Qxf5 {[%clk 0:04:23.8]} 16. Nb5 {[%clk 0:04:33.5]}
16... c6 {[%clk 0:04:21.8]} 17. Qa4 {[%clk 0:04:26.9]} 17... Kd7 {[%clk
0:04:01.7]} 18. Qxa7 {[%clk 0:04:13.4]} 18... cxb5 {[%clk 0:03:53.4]} 19. Rc7+
{[%clk 0:04:02.8]} 19... Ke8 {[%clk 0:03:50.5]} 20. Qxb7 {[%clk 0:04:02.1]}
20... Qe6 {[%clk 0:03:44.7]} 21. Qxb5+ {[%clk 0:03:58]} 21... Kf8 {[%clk
0:03:40.8]} 22. Rfc1 {[%clk 0:03:56.4]} 22... Bd6 {[%clk 0:03:36.7]} 23. R7c6
{[%clk 0:03:54.8]} 23... Kg7 {[%clk 0:03:28.7]} 24. Qb6 {[%clk 0:03:53.2]} 24...
Rb8 {[%clk 0:02:57]} 25. Qa6 {[%clk 0:03:24.8]} 25... Ra8 {[%clk 0:02:49.8]} 26.
Qd3 {[%clk 0:03:17.3]} 26... Rhd8 {[%clk 0:02:45.4]} 27. a3 {[%clk 0:03:13.7]}
27... Rac8 {[%clk 0:02:37.9]} 28. h3 {[%clk 0:03:02.9]} 28... Rxc6 {[%clk
0:02:34.7]} 29. Rxc6 {[%clk 0:03:02.5]} 29... Kh6 {[%clk 0:02:27.9]} 30. Qa6
{[%clk 0:03:00.5]} 30... Ne4 {[%clk 0:02:22]} 31. f3 {[%clk 0:02:57.5]} 31... f6
{[%clk 0:01:55.7]} 32. fxe4 {[%clk 0:02:16.3]} 32... fxe5 {[%clk 0:01:51.5]} 33.
Qb6 {[%clk 0:01:45.8]} 33... exd4 {[%clk 0:01:28.4]} 34. exd4 {[%clk 0:01:43.8]}
34... dxe4 {[%clk 0:01:22.9]} 35. b4 {[%clk 0:01:38.6]} 35... e3 {[%clk
0:01:08]} 36. d5 {[%clk 0:01:36]} 36... e2 {[%clk 0:01:04.3]} 0-1